[Event "Titled Tuesday Blitz July 18 Late 2023"]
[White "Schachpanda_Youtube"]
[Black "Bochnicka, Vladimir"]
[BlackFideId "14943450"]
[WhiteElo "2234"]
[BlackElo "2463"]
[Result "0-1"]
[Round "2"]
[TimeControl "180+2"]
[Date "2023.07.18"]
[WhiteClock "0:00:00"]
[BlackClock "0:01:07"]
[Board "170"]

1. e4 {[%clk 0:03:00]}  e5 {[%clk 0:02:56]} 2. Nc3 {[%clk 0:03:00]}  Nf6 {[%clk 0:02:56]} 3. d4 {[%clk 0:03:00]}  exd4 {[%clk 0:02:54]} 4. Qxd4 {[%clk 0:03:01]}  Nc6 {[%clk 0:02:54]} 5. Qd3 {[%clk 0:03:01]}  d6 {[%clk 0:02:54]} 6. Bg5 {[%clk 0:02:57]}  Be7 {[%clk 0:02:53]} 7. O-O-O {[%clk 0:02:57]}  O-O {[%clk 0:02:53]} 8. f4 {[%clk 0:02:44]}  a6 {[%clk 0:02:51]} 9. Nf3 {[%clk 0:02:37]}  b5 {[%clk 0:02:49]} 10. Kb1 {[%clk 0:02:31]}  Nb4 {[%clk 0:02:38]} 11. Qd2 {[%clk 0:02:20]}  Bb7 {[%clk 0:02:35]} 12. Bd3 {[%clk 0:02:07]}  c5 {[%clk 0:02:26]} 13. e5 {[%clk 0:01:57]}  dxe5 {[%clk 0:02:23]} 14. fxe5 {[%clk 0:01:54]}  Nfd5 {[%clk 0:02:18]} 15. Nxd5 {[%clk 0:01:48]}  Bxd5 {[%clk 0:02:08]} 16. Bxe7 {[%clk 0:01:27]}  Bxa2+ {[%clk 0:01:56]} 17. Ka1 {[%clk 0:00:48]}  Qxe7 {[%clk 0:01:54]} 18. c3 {[%clk 0:00:48]}  Nxd3 {[%clk 0:01:54]} 19. Qxd3 {[%clk 0:00:48]}  Bb3 {[%clk 0:01:51]} 20. Rde1 {[%clk 0:00:38]}  Rfd8 {[%clk 0:01:45]} 21. Qf5 {[%clk 0:00:37]}  Qc7 {[%clk 0:01:43]} 22. Kb1 {[%clk 0:00:32]}  Qa5 {[%clk 0:01:42]} 23. Ng5 {[%clk 0:00:16]}  g6 {[%clk 0:01:34]} 24. Qe4 {[%clk 0:00:14]}  b4 {[%clk 0:01:10]} 25. e6 {[%clk 0:00:11]}  fxe6 {[%clk 0:01:08]} 26. cxb4 {[%clk 0:00:07]}  cxb4 {[%clk 0:01:07]} 27. Nxe6 {[%clk 0:00:02]}  Qa2+ {[%clk 0:01:06]} 28. Kc1 {[%clk 0:00:00]}  Rac8+ {[%clk 0:01:07]} 0-1


[Site "https://www.chess.com"]

[Event "Titled Tuesday Blitz July 18 Late 2023"]
[White "ChessSG1"]
[Black "NigelDwarf"]
[WhiteElo "2233"]
[BlackElo "2462"]
[Result "0-1"]
[Round "2"]
[TimeControl "180+2"]
[Date "2023.07.18"]
[WhiteClock "0:00:00"]
[BlackClock "0:00:48"]
[Board "171"]

1. c4 {[%clk 0:03:00]}  Nf6 {[%clk 0:02:57]} 2. g3 {[%clk 0:03:01]}  g6 {[%clk 0:02:52]} 3. Bg2 {[%clk 0:03:01]}  Bg7 {[%clk 0:02:53]} 4. Nc3 {[%clk 0:03:02]}  O-O {[%clk 0:02:54]} 5. e4 {[%clk 0:03:02]}  d6 {[%clk 0:02:53]} 6. Nge2 {[%clk 0:03:01]}  c5 {[%clk 0:02:52]} 7. d3 {[%clk 0:03:02]}  Nc6 {[%clk 0:02:52]} 8. O-O {[%clk 0:03:00]}  Ne8 {[%clk 0:02:50]} 9. Be3 {[%clk 0:02:55]}  a6 {[%clk 0:02:49]} 10. d4 {[%clk 0:02:29]}  cxd4 {[%clk 0:02:48]} 11. Nxd4 {[%clk 0:02:30]}  Nc7 {[%clk 0:02:47]} 12. Nde2 {[%clk 0:02:29]}  Be6 {[%clk 0:02:43]} 13. b3 {[%clk 0:02:28]}  b5 {[%clk 0:02:43]} 14. e5 {[%clk 0:02:13]}  Nxe5 {[%clk 0:02:42]} 15. cxb5 {[%clk 0:01:38]}  axb5 {[%clk 0:02:38]} 16. Nd4 {[%clk 0:01:06]}  b4 {[%clk 0:02:28]} 17. Nxe6 {[%clk 0:01:05]}  Nxe6 {[%clk 0:02:29]} 18. Bxa8 {[%clk 0:01:00]}  Qxa8 {[%clk 0:02:30]} 19. Nd5 {[%clk 0:00:58]}  Kh8 {[%clk 0:01:46]} 20. Rc1 {[%clk 0:00:51]}  g5 {[%clk 0:01:15]} 21. f4 {[%clk 0:00:38]}  gxf4 {[%clk 0:01:04]} 22. Nb6 {[%clk 0:00:16]}  Qe4 {[%clk 0:00:55]} 23. Bxf4 {[%clk 0:00:11]}  Nxf4 {[%clk 0:00:52]} 24. Rxf4 {[%clk 0:00:09]}  Qe3+ {[%clk 0:00:52]} 25. Kh1 {[%clk 0:00:09]}  Qxb6 {[%clk 0:00:51]} 26. Qd5 {[%clk 0:00:04]}  Bh6 {[%clk 0:00:49]} 27. Rcf1 {[%clk 0:00:02]}  Bxf4 {[%clk 0:00:49]} 28. gxf4 {[%clk 0:00:03]}  e6 {[%clk 0:00:48]} 29. Qe4 {[%clk 0:00:01]}  f5 {[%clk 0:00:48]} 30. Qg2 {[%clk 0:00:00]}  Rg8 {[%clk 0:00:48]} 0-1


[Site "https://www.chess.com"]

[Event "Titled Tuesday Blitz July 18 Late 2023"]
[White "Deviprasath, Sharvesh"]
[Black "Sarkar, Justin"]
[WhiteFideId "30938228"]
[BlackFideId "2010011"]
[WhiteElo "2459"]
[BlackElo "2232"]
[Result "0-1"]
[Round "2"]
[TimeControl "180+2"]
[Date "2023.07.18"]
[WhiteClock "0:00:45"]
[BlackClock "0:00:16"]
[Board "172"]

1. Nf3 {[%clk 0:03:00]}  d5 {[%clk 0:02:44]} 2. b3 {[%clk 0:02:58]}  c5 {[%clk 0:02:29]} 3. Bb2 {[%clk 0:02:59]}  f6 {[%clk 0:02:27]} 4. Nc3 {[%clk 0:02:55]}  d4 {[%clk 0:02:25]} 5. Ne4 {[%clk 0:02:55]}  e5 {[%clk 0:02:23]} 6. e3 {[%clk 0:02:54]}  Nc6 {[%clk 0:02:19]} 7. Bb5 {[%clk 0:02:54]}  Bd7 {[%clk 0:02:09]} 8. d3 {[%clk 0:02:53]}  Nh6 {[%clk 0:01:52]} 9. Nh4 {[%clk 0:02:49]}  Qa5+ {[%clk 0:01:45]} 10. Kf1 {[%clk 0:02:20]}  Qxb5 {[%clk 0:01:45]} 11. Qh5+ {[%clk 0:02:11]}  Nf7 {[%clk 0:01:44]} 12. a4 {[%clk 0:02:03]}  Qb6 {[%clk 0:01:37]} 13. Bc1 {[%clk 0:01:53]}  Be7 {[%clk 0:01:34]} 14. Bd2 {[%clk 0:01:50]}  g6 {[%clk 0:01:28]} 15. Qf3 {[%clk 0:01:47]}  f5 {[%clk 0:01:26]} 16. a5 {[%clk 0:01:47]}  Qc7 {[%clk 0:01:21]} 17. Nxc5 {[%clk 0:01:44]}  Bxc5 {[%clk 0:01:18]} 18. Qd5 {[%clk 0:01:44]}  Qd6 {[%clk 0:01:11]} 19. Qc4 {[%clk 0:01:38]}  Be6 {[%clk 0:01:05]} 20. Qb5 {[%clk 0:01:29]}  a6 {[%clk 0:01:05]} 21. Qa4 {[%clk 0:01:25]}  O-O {[%clk 0:01:04]} 22. h3 {[%clk 0:01:25]}  Bb4 {[%clk 0:01:02]} 23. Bc1 {[%clk 0:01:25]}  e4 {[%clk 0:00:57]} 24. dxe4 {[%clk 0:01:23]}  fxe4 {[%clk 0:00:55]} 25. exd4 {[%clk 0:01:14]}  Qxd4 {[%clk 0:00:48]} 26. Be3 {[%clk 0:01:13]}  Qc3 {[%clk 0:00:39]} 27. g4 {[%clk 0:01:12]}  Nfe5 {[%clk 0:00:35]} 28. Ng2 {[%clk 0:01:07]}  Bc5 {[%clk 0:00:27]} 29. Qxe4 {[%clk 0:01:02]}  Bxe3 {[%clk 0:00:25]} 30. Nxe3 {[%clk 0:01:02]}  Qxa1+ {[%clk 0:00:24]} 31. Kg2 {[%clk 0:01:02]}  Qd4 {[%clk 0:00:24]} 32. Qxd4 {[%clk 0:00:42]}  Nxd4 {[%clk 0:00:24]} 33. Rd1 {[%clk 0:00:41]}  Ndf3 {[%clk 0:00:24]} 34. Rd6 {[%clk 0:00:42]}  Rfe8 {[%clk 0:00:22]} 35. g5 {[%clk 0:00:43]}  Rad8 {[%clk 0:00:22]} 36. h4 {[%clk 0:00:44]}  Rxd6 {[%clk 0:00:21]} 37. Nf5 {[%clk 0:00:44]}  Bxf5 {[%clk 0:00:21]} 38. Kg3 {[%clk 0:00:42]}  Rd2 {[%clk 0:00:20]} 39. Kf4 {[%clk 0:00:43]}  Red8 {[%clk 0:00:19]} 40. c4 {[%clk 0:00:44]}  R8d4+ {[%clk 0:00:18]} 41. Ke3 {[%clk 0:00:45]}  Re4# {[%clk 0:00:16]} 0-1


[Site "https://www.chess.com"]

[Event "Titled Tuesday Blitz July 18 Late 2023"]
[White "Kalaiyalahan, Akshaya"]
[Black "Marra, Eduardo da Costa"]
[WhiteFideId "422894"]
[BlackFideId "2106990"]
[WhiteElo "2228"]
[BlackElo "2456"]
[Result "1-0"]
[Round "2"]
[TimeControl "180+2"]
[Date "2023.07.18"]
[WhiteClock "0:00:08"]
[BlackClock "0:00:57"]
[Board "174"]

1. b3 {[%clk 0:03:00]}  e5 {[%clk 0:02:59]} 2. Bb2 {[%clk 0:03:00]}  d6 {[%clk 0:03:00]} 3. e3 {[%clk 0:02:57]}  Nc6 {[%clk 0:03:00]} 4. d4 {[%clk 0:02:57]}  exd4 {[%clk 0:02:59]} 5. exd4 {[%clk 0:02:57]}  Nf6 {[%clk 0:02:56]} 6. d5 {[%clk 0:02:56]}  Ne5 {[%clk 0:02:54]} 7. c4 {[%clk 0:02:50]}  g6 {[%clk 0:02:52]} 8. Qe2 {[%clk 0:02:39]}  Bg7 {[%clk 0:02:53]} 9. Nf3 {[%clk 0:02:34]}  O-O {[%clk 0:02:54]} 10. Nxe5 {[%clk 0:02:26]}  dxe5 {[%clk 0:02:51]} 11. Nd2 {[%clk 0:02:21]}  a5 {[%clk 0:02:46]} 12. Qd1 {[%clk 0:02:10]}  a4 {[%clk 0:02:44]} 13. Be2 {[%clk 0:02:09]}  a3 {[%clk 0:02:39]} 14. Bc3 {[%clk 0:02:08]}  Re8 {[%clk 0:02:36]} 15. O-O {[%clk 0:02:08]}  Bf5 {[%clk 0:02:36]} 16. Nf3 {[%clk 0:02:03]}  Ne4 {[%clk 0:02:33]} 17. Bb4 {[%clk 0:01:54]}  b6 {[%clk 0:02:22]} 18. Bd3 {[%clk 0:01:47]}  Nxf2 {[%clk 0:02:13]} 19. Rxf2 {[%clk 0:01:42]}  e4 {[%clk 0:02:14]} 20. Bxe4 {[%clk 0:01:35]}  Bxe4 {[%clk 0:02:15]} 21. Rc1 {[%clk 0:01:33]}  Bb2 {[%clk 0:02:08]} 22. Bc3 {[%clk 0:01:29]}  Qd6 {[%clk 0:01:44]} 23. Bxb2 {[%clk 0:01:21]}  axb2 {[%clk 0:01:44]} 24. Rxb2 {[%clk 0:01:22]}  Qc5+ {[%clk 0:01:40]} 25. Qd4 {[%clk 0:01:12]}  Qb4 {[%clk 0:01:27]} 26. Ng5 {[%clk 0:00:26]}  Bf5 {[%clk 0:01:25]} 27. Rf1 {[%clk 0:00:20]}  Re1 {[%clk 0:01:24]} 28. Rf2 {[%clk 0:00:20]}  Rxf1+ {[%clk 0:01:23]} 29. Rxf1 {[%clk 0:00:20]}  Rxa2 {[%clk 0:01:22]} 30. Qf6 {[%clk 0:00:20]}  Qc5+ {[%clk 0:01:18]} 31. Kh1 {[%clk 0:00:19]}  Qf8 {[%clk 0:01:14]} 32. g4 {[%clk 0:00:13]}  Bxg4 {[%clk 0:01:06]} 33. Nxf7 {[%clk 0:00:13]}  Bf5 {[%clk 0:00:58]} 34. Rxf5 {[%clk 0:00:05]}  gxf5 {[%clk 0:00:57]} 35. Nh6+ {[%clk 0:00:06]}  Qxh6 {[%clk 0:00:57]} 36. Qxh6 {[%clk 0:00:06]}  Ra1+ {[%clk 0:00:57]} 37. Kg2 {[%clk 0:00:06]}  Ra2+ {[%clk 0:00:58]} 38. Kf3 {[%clk 0:00:06]}  Rb2 {[%clk 0:00:59]} 39. Qg5+ {[%clk 0:00:06]}  Kf7 {[%clk 0:01:00]} 40. Qxf5+ {[%clk 0:00:06]}  Kg7 {[%clk 0:01:00]} 41. Qd7+ {[%clk 0:00:05]}  Kf8 {[%clk 0:01:01]} 42. Qxc7 {[%clk 0:00:06]}  Rxb3+ {[%clk 0:01:01]} 43. Ke4 {[%clk 0:00:06]}  Rb4 {[%clk 0:01:01]} 44. Kd4 {[%clk 0:00:06]}  Ke8 {[%clk 0:01:02]} 45. Qxh7 {[%clk 0:00:05]}  Kd8 {[%clk 0:01:00]} 46. Qg8+ {[%clk 0:00:06]}  Kc7 {[%clk 0:01:00]} 47. Qf7+ {[%clk 0:00:06]}  Kb8 {[%clk 0:01:00]} 48. Qf8+ {[%clk 0:00:07]}  Kb7 {[%clk 0:01:01]} 49. Qxb4 {[%clk 0:00:07]}  Ka6 {[%clk 0:00:57]} 50. Qxb6+ {[%clk 0:00:08]} 1-0


[Site "https://www.chess.com"]

[Event "Titled Tuesday Blitz July 18 Late 2023"]
[White "De Arruda, Leandro Formes"]
[Black "Mujumdar, Sameer"]
[WhiteFideId "22722009"]
[BlackFideId "2029707"]
[WhiteElo "2225"]
[BlackElo "2447"]
[Result "0-1"]
[Round "2"]
[TimeControl "180+2"]
[Date "2023.07.18"]
[WhiteClock "0:00:00"]
[BlackClock "0:00:14"]
[Board "176"]

1. d4 {[%clk 0:03:00]}  d5 {[%clk 0:02:58]} 2. Nf3 {[%clk 0:03:00]}  Nf6 {[%clk 0:02:57]} 3. e3 {[%clk 0:03:01]}  c6 {[%clk 0:02:57]} 4. Nbd2 {[%clk 0:03:00]}  Bg4 {[%clk 0:02:57]} 5. Be2 {[%clk 0:03:00]}  e6 {[%clk 0:02:57]} 6. O-O {[%clk 0:03:00]}  Bd6 {[%clk 0:02:57]} 7. b3 {[%clk 0:03:01]}  Nbd7 {[%clk 0:02:57]} 8. Bb2 {[%clk 0:03:01]}  Qe7 {[%clk 0:02:57]} 9. Ne5 {[%clk 0:03:01]}  Bxe2 {[%clk 0:02:57]} 10. Qxe2 {[%clk 0:03:02]}  O-O {[%clk 0:02:54]} 11. Rac1 {[%clk 0:03:01]}  c5 {[%clk 0:02:53]} 12. c4 {[%clk 0:03:01]}  cxd4 {[%clk 0:02:53]} 13. exd4 {[%clk 0:03:02]}  Rac8 {[%clk 0:02:50]} 14. c5 {[%clk 0:02:58]}  Bb8 {[%clk 0:02:44]} 15. b4 {[%clk 0:02:56]}  Nxe5 {[%clk 0:02:38]} 16. dxe5 {[%clk 0:02:57]}  Nd7 {[%clk 0:02:39]} 17. f4 {[%clk 0:02:56]}  a6 {[%clk 0:02:37]} 18. a4 {[%clk 0:02:54]}  a5 {[%clk 0:02:25]} 19. Nb3 {[%clk 0:02:16]}  axb4 {[%clk 0:02:21]} 20. Bd4 {[%clk 0:02:17]}  f6 {[%clk 0:02:08]} 21. exf6 {[%clk 0:02:11]}  Nxf6 {[%clk 0:02:09]} 22. Qb5 {[%clk 0:01:51]}  Ne4 {[%clk 0:01:58]} 23. g3 {[%clk 0:01:43]}  Ba7 {[%clk 0:01:31]} 24. a5 {[%clk 0:00:49]}  Rc6 {[%clk 0:01:22]} 25. Qxb4 {[%clk 0:00:44]}  Rfc8 {[%clk 0:01:22]} 26. Rb1 {[%clk 0:00:35]}  Nxc5 {[%clk 0:01:11]} 27. Nxc5 {[%clk 0:00:36]}  Bxc5 {[%clk 0:01:11]} 28. Bxc5 {[%clk 0:00:36]}  Rxc5 {[%clk 0:01:08]} 29. Qxb7 {[%clk 0:00:24]}  Qxb7 {[%clk 0:01:09]} 30. Rxb7 {[%clk 0:00:25]}  Rxa5 {[%clk 0:01:09]} 31. Re1 {[%clk 0:00:22]}  Ra6 {[%clk 0:01:04]} 32. f5 {[%clk 0:00:19]}  Re8 {[%clk 0:00:50]} 33. Rd7 {[%clk 0:00:16]}  e5 {[%clk 0:00:29]} 34. g4 {[%clk 0:00:15]}  Ra5 {[%clk 0:00:27]} 35. Kg2 {[%clk 0:00:14]}  d4 {[%clk 0:00:23]} 36. Rxd4 {[%clk 0:00:14]}  Rb8 {[%clk 0:00:21]} 37. Rde4 {[%clk 0:00:14]}  Rb2+ {[%clk 0:00:20]} 38. R1e2 {[%clk 0:00:13]}  Rxe2+ {[%clk 0:00:18]} 39. Rxe2 {[%clk 0:00:14]}  Kf7 {[%clk 0:00:18]} 40. h3 {[%clk 0:00:14]}  Kf6 {[%clk 0:00:19]} 41. Kf3 {[%clk 0:00:14]}  Ra3+ {[%clk 0:00:18]} 42. Re3 {[%clk 0:00:14]}  Ra4 {[%clk 0:00:17]} 43. Re4 {[%clk 0:00:14]}  Ra1 {[%clk 0:00:17]} 44. Re2 {[%clk 0:00:14]}  h5 {[%clk 0:00:16]} 45. Kg3 {[%clk 0:00:14]}  Ra3+ {[%clk 0:00:16]} 46. Kh4 {[%clk 0:00:13]}  hxg4 {[%clk 0:00:16]} 47. hxg4 {[%clk 0:00:14]}  Ra4 {[%clk 0:00:14]} 48. Rc2 {[%clk 0:00:13]}  e4 {[%clk 0:00:14]} 49. Rc6+ {[%clk 0:00:12]}  Ke5 {[%clk 0:00:14]} 50. Rg6 {[%clk 0:00:11]}  Ra7 {[%clk 0:00:14]} 51. Kg3 {[%clk 0:00:10]}  Rd7 {[%clk 0:00:12]} 52. Re6+ {[%clk 0:00:10]}  Kd4 {[%clk 0:00:13]} 53. Kf4 {[%clk 0:00:11]}  e3 {[%clk 0:00:10]} 54. Rxe3 {[%clk 0:00:10]}  Ra7 {[%clk 0:00:10]} 55. Re4+ {[%clk 0:00:10]}  Kd5 {[%clk 0:00:11]} 56. Re5+ {[%clk 0:00:10]}  Kd6 {[%clk 0:00:11]} 57. Re6+ {[%clk 0:00:10]}  Kd7 {[%clk 0:00:11]} 58. Rg6 {[%clk 0:00:09]}  Ke8 {[%clk 0:00:11]} 59. Kg5 {[%clk 0:00:09]}  Kf7 {[%clk 0:00:11]} 60. Re6 {[%clk 0:00:09]}  Ra4 {[%clk 0:00:11]} 61. Rc6 {[%clk 0:00:09]}  Ra7 {[%clk 0:00:12]} 62. Rb6 {[%clk 0:00:09]}  Rc7 {[%clk 0:00:12]} 63. Kh5 {[%clk 0:00:08]}  Rc1 {[%clk 0:00:10]} 64. Rb7+ {[%clk 0:00:08]}  Kf6 {[%clk 0:00:10]} 65. Rb6+ {[%clk 0:00:08]}  Kf7 {[%clk 0:00:10]} 66. Kg5 {[%clk 0:00:08]}  Rc7 {[%clk 0:00:10]} 67. Kf4 {[%clk 0:00:07]}  Ra7 {[%clk 0:00:11]} 68. g5 {[%clk 0:00:06]}  Ra4+ {[%clk 0:00:11]} 69. Ke5 {[%clk 0:00:07]}  Ra5+ {[%clk 0:00:12]} 70. Ke4 {[%clk 0:00:07]}  Ra4+ {[%clk 0:00:12]} 71. Kd3 {[%clk 0:00:07]}  Ra3+ {[%clk 0:00:11]} 72. Kc4 {[%clk 0:00:06]}  Rf3 {[%clk 0:00:11]} 73. g6+ {[%clk 0:00:05]}  Ke7 {[%clk 0:00:11]} 74. Re6+ {[%clk 0:00:05]}  Kd7 {[%clk 0:00:11]} 75. Re5 {[%clk 0:00:04]}  Kd6 {[%clk 0:00:11]} 76. Rd5+ {[%clk 0:00:03]}  Ke7 {[%clk 0:00:11]} 77. Kd4 {[%clk 0:00:04]}  Kf6 {[%clk 0:00:10]} 78. Ke4 {[%clk 0:00:03]}  Rf1 {[%clk 0:00:11]} 79. Rd6+ {[%clk 0:00:04]}  Kg5 {[%clk 0:00:09]} 80. Rd7 {[%clk 0:00:03]}  Re1+ {[%clk 0:00:10]} 81. Kd5 {[%clk 0:00:03]}  Kf6 {[%clk 0:00:10]} 82. Rf7+ {[%clk 0:00:03]}  Kg5 {[%clk 0:00:10]} 83. Rxg7 {[%clk 0:00:04]}  Kxf5 {[%clk 0:00:11]} 84. Rf7+ {[%clk 0:00:04]}  Kxg6 {[%clk 0:00:11]} 85. Rf2 {[%clk 0:00:04]}  Rd1+ {[%clk 0:00:11]} 86. Ke5 {[%clk 0:00:04]}  Re1+ {[%clk 0:00:12]} 87. Kf4 {[%clk 0:00:04]}  Re6 {[%clk 0:00:11]} 88. Rg2+ {[%clk 0:00:05]}  Kf7 {[%clk 0:00:12]} 89. Kf5 {[%clk 0:00:05]}  Rf6+ {[%clk 0:00:12]} 90. Ke5 {[%clk 0:00:05]}  Ra6 {[%clk 0:00:13]} 91. Rf2+ {[%clk 0:00:05]}  Ke7 {[%clk 0:00:13]} 92. Rh2 {[%clk 0:00:06]}  Ra5+ {[%clk 0:00:13]} 93. Kd4 {[%clk 0:00:06]}  Ke6 {[%clk 0:00:14]} 94. Rh6+ {[%clk 0:00:00]}  Kd7 {[%clk 0:00:14]} 0-1


[Site "https://www.chess.com"]

[Event "Titled Tuesday Blitz July 18 Late 2023"]
[White "Castella Garcia, Fausto"]
[Black "Vila Dupla, Aurelio"]
[WhiteFideId "3501922"]
[BlackFideId "2203383"]
[WhiteElo "2444"]
[BlackElo "2214"]
[Result "0-1"]
[Round "2"]
[TimeControl "180+2"]
[Date "2023.07.18"]
[WhiteClock "0:00:32"]
[BlackClock "0:00:37"]
[Board "177"]

1. e4 {[%clk 0:03:00]}  c5 {[%clk 0:02:59]} 2. Nf3 {[%clk 0:03:00]}  d6 {[%clk 0:02:59]} 3. d4 {[%clk 0:03:00]}  cxd4 {[%clk 0:02:58]} 4. Nxd4 {[%clk 0:03:01]}  Nf6 {[%clk 0:02:58]} 5. Nc3 {[%clk 0:03:01]}  g6 {[%clk 0:02:58]} 6. f4 {[%clk 0:03:00]}  Nc6 {[%clk 0:02:58]} 7. Bb5 {[%clk 0:02:59]}  Bd7 {[%clk 0:02:57]} 8. Bxc6 {[%clk 0:02:56]}  bxc6 {[%clk 0:02:55]} 9. e5 {[%clk 0:02:56]}  dxe5 {[%clk 0:02:36]} 10. fxe5 {[%clk 0:02:57]}  Ng4 {[%clk 0:02:36]} 11. e6 {[%clk 0:02:50]}  Bxe6 {[%clk 0:02:36]} 12. Nxe6 {[%clk 0:02:46]}  Qxd1+ {[%clk 0:02:36]} 13. Nxd1 {[%clk 0:02:44]}  fxe6 {[%clk 0:02:34]} 14. h3 {[%clk 0:02:43]}  Nf6 {[%clk 0:02:32]} 15. Ne3 {[%clk 0:02:42]}  Nd5 {[%clk 0:02:28]} 16. Nc4 {[%clk 0:02:40]}  Bg7 {[%clk 0:02:27]} 17. O-O {[%clk 0:02:38]}  Rf8 {[%clk 0:02:21]} 18. Bd2 {[%clk 0:02:33]}  Rxf1+ {[%clk 0:02:20]} 19. Rxf1 {[%clk 0:02:33]}  Nb6 {[%clk 0:02:19]} 20. Na5 {[%clk 0:02:25]}  Bxb2 {[%clk 0:02:06]} 21. Nxc6 {[%clk 0:02:11]}  Rc8 {[%clk 0:02:05]} 22. Nb4 {[%clk 0:02:04]}  Bd4+ {[%clk 0:02:01]} 23. Kh1 {[%clk 0:02:03]}  a5 {[%clk 0:02:00]} 24. Nd3 {[%clk 0:01:55]}  Rxc2 {[%clk 0:01:58]} 25. Bxa5 {[%clk 0:01:56]}  Nc4 {[%clk 0:01:56]} 26. Bb4 {[%clk 0:01:48]}  Ne3 {[%clk 0:01:53]} 27. Rf4 {[%clk 0:01:40]}  e5 {[%clk 0:01:43]} 28. Rh4 {[%clk 0:01:39]}  h5 {[%clk 0:01:39]} 29. Re4 {[%clk 0:01:31]}  Nxg2 {[%clk 0:01:34]} 30. Nxe5 {[%clk 0:01:26]}  Bxe5 {[%clk 0:01:19]} 31. Rxe5 {[%clk 0:01:26]}  Rxa2 {[%clk 0:01:19]} 32. Rxe7+ {[%clk 0:01:26]}  Kd8 {[%clk 0:01:20]} 33. Rg7 {[%clk 0:01:18]}  Nf4 {[%clk 0:01:07]} 34. h4 {[%clk 0:01:17]}  Rg2 {[%clk 0:00:54]} 35. Be7+ {[%clk 0:01:13]}  Ke8 {[%clk 0:00:50]} 36. Bg5 {[%clk 0:01:09]}  Rg4 {[%clk 0:00:50]} 37. Kh2 {[%clk 0:00:51]}  Kf8 {[%clk 0:00:46]} 38. Ra7 {[%clk 0:00:47]}  Ne6 {[%clk 0:00:43]} 39. Bf6 {[%clk 0:00:45]}  Rf4 {[%clk 0:00:38]} 40. Be7+ {[%clk 0:00:43]}  Ke8 {[%clk 0:00:37]} 41. Kg3 {[%clk 0:00:43]}  Rg4+ {[%clk 0:00:37]} 42. Kf3 {[%clk 0:00:42]}  Nd4+ {[%clk 0:00:37]} 43. Kf2 {[%clk 0:00:32]}  Nc6 {[%clk 0:00:37]} 0-1


[Site "https://www.chess.com"]

[Event "Titled Tuesday Blitz July 18 Late 2023"]
[White "Novikova, Margarita"]
[Black "Gaal, Zsoka"]
[WhiteFideId "14109689"]
[BlackFideId "777765"]
[WhiteElo "2187"]
[BlackElo "2443"]
[Result "0-1"]
[Round "2"]
[TimeControl "180+2"]
[Date "2023.07.18"]
[WhiteClock "0:01:06"]
[BlackClock "0:01:01"]
[Board "178"]

1. e4 {[%clk 0:02:48]}  e5 {[%clk 0:02:56]} 2. Nf3 {[%clk 0:02:48]}  d6 {[%clk 0:02:56]} 3. d4 {[%clk 0:02:47]}  exd4 {[%clk 0:02:57]} 4. Nxd4 {[%clk 0:02:48]}  Nf6 {[%clk 0:02:58]} 5. Nc3 {[%clk 0:02:47]}  g6 {[%clk 0:02:58]} 6. Bg5 {[%clk 0:02:47]}  Bg7 {[%clk 0:02:57]} 7. Qd2 {[%clk 0:02:45]}  h6 {[%clk 0:02:54]} 8. Bh4 {[%clk 0:02:44]}  g5 {[%clk 0:02:52]} 9. Bg3 {[%clk 0:02:37]}  Nc6 {[%clk 0:02:52]} 10. Bb5 {[%clk 0:02:35]}  Bd7 {[%clk 0:02:52]} 11. O-O {[%clk 0:02:30]}  Nxd4 {[%clk 0:02:39]} 12. Bxd7+ {[%clk 0:02:29]}  Nxd7 {[%clk 0:02:39]} 13. h4 {[%clk 0:02:20]}  Ne6 {[%clk 0:02:36]} 14. Nd5 {[%clk 0:02:19]}  Ne5 {[%clk 0:02:31]} 15. c3 {[%clk 0:02:14]}  gxh4 {[%clk 0:02:30]} 16. Bh2 {[%clk 0:02:14]}  h3 {[%clk 0:02:30]} 17. f4 {[%clk 0:02:13]}  Ng4 {[%clk 0:02:17]} 18. Bg3 {[%clk 0:02:07]}  hxg2 {[%clk 0:02:14]} 19. Kxg2 {[%clk 0:02:07]}  c6 {[%clk 0:01:58]} 20. Nb4 {[%clk 0:02:02]}  a5 {[%clk 0:01:42]} 21. Nc2 {[%clk 0:02:01]}  Qd7 {[%clk 0:01:31]} 22. f5 {[%clk 0:02:01]}  Nc5 {[%clk 0:01:31]} 23. Rad1 {[%clk 0:01:52]}  O-O-O {[%clk 0:01:30]} 24. Rfe1 {[%clk 0:01:49]}  Be5 {[%clk 0:01:28]} 25. Bh4 {[%clk 0:01:47]}  Rde8 {[%clk 0:01:23]} 26. b4 {[%clk 0:01:44]}  Na4 {[%clk 0:01:15]} 27. Ne3 {[%clk 0:01:23]}  Rhg8 {[%clk 0:01:12]} 28. Kh1 {[%clk 0:01:21]}  Nxc3 {[%clk 0:01:09]} 29. bxa5 {[%clk 0:01:15]}  Nxd1 {[%clk 0:01:07]} 30. Rxd1 {[%clk 0:01:15]}  Nxe3 {[%clk 0:01:07]} 31. Rb1 {[%clk 0:01:12]}  Rg2 {[%clk 0:00:58]} 32. Qxe3 {[%clk 0:01:10]}  Rh2+ {[%clk 0:00:59]} 33. Kg1 {[%clk 0:01:11]}  Rg8+ {[%clk 0:00:59]} 34. Kf1 {[%clk 0:01:10]}  Rh1+ {[%clk 0:01:00]} 35. Ke2 {[%clk 0:01:06]}  Rxb1 {[%clk 0:01:01]} 0-1


[Site "https://www.chess.com"]

[Event "Titled Tuesday Blitz July 18 Late 2023"]
[White "Reprintsev, Alexander"]
[Black "Cueto, Jonny"]
[WhiteFideId "14100541"]
[BlackFideId "3300145"]
[WhiteElo "2443"]
[BlackElo "2172"]
[Result "1-0"]
[Round "2"]
[TimeControl "180+2"]
[Date "2023.07.18"]
[WhiteClock "0:00:12"]
[BlackClock "0:00:00"]
[Board "179"]

1. e4 {[%clk 0:02:55]}  e6 {[%clk 0:02:52]} 2. d4 {[%clk 0:02:33]}  d5 {[%clk 0:02:51]} 3. Nc3 {[%clk 0:02:02]}  Nf6 {[%clk 0:02:43]} 4. Bg5 {[%clk 0:01:59]}  Be7 {[%clk 0:02:41]} 5. e5 {[%clk 0:01:58]}  Nfd7 {[%clk 0:02:40]} 6. Bxe7 {[%clk 0:01:59]}  Qxe7 {[%clk 0:02:41]} 7. f4 {[%clk 0:01:56]}  a6 {[%clk 0:02:39]} 8. Nf3 {[%clk 0:01:40]}  c5 {[%clk 0:02:37]} 9. Qd2 {[%clk 0:01:40]}  Nc6 {[%clk 0:02:32]} 10. dxc5 {[%clk 0:01:24]}  Nxc5 {[%clk 0:02:27]} 11. Nd4 {[%clk 0:01:21]}  Bd7 {[%clk 0:02:26]} 12. O-O-O {[%clk 0:01:20]}  b5 {[%clk 0:02:18]} 13. Nxc6 {[%clk 0:01:16]}  Bxc6 {[%clk 0:02:18]} 14. Ne2 {[%clk 0:01:15]}  a5 {[%clk 0:02:14]} 15. Nd4 {[%clk 0:01:15]}  Qb7 {[%clk 0:02:14]} 16. f5 {[%clk 0:01:12]}  b4 {[%clk 0:01:49]} 17. fxe6 {[%clk 0:01:07]}  fxe6 {[%clk 0:01:48]} 18. Bd3 {[%clk 0:00:57]}  O-O {[%clk 0:01:22]} 19. Rhf1 {[%clk 0:00:46]}  a4 {[%clk 0:01:09]} 20. Rxf8+ {[%clk 0:00:21]}  Rxf8 {[%clk 0:01:05]} 21. Nxc6 {[%clk 0:00:22]}  Qxc6 {[%clk 0:01:05]} 22. Qxb4 {[%clk 0:00:22]}  Rc8 {[%clk 0:00:34]} 23. Qc3 {[%clk 0:00:22]}  Qb7 {[%clk 0:00:25]} 24. Qd4 {[%clk 0:00:19]}  a3 {[%clk 0:00:11]} 25. b3 {[%clk 0:00:19]}  Qb6 {[%clk 0:00:07]} 26. Be2 {[%clk 0:00:16]}  Qa5 {[%clk 0:00:05]} 27. Qd2 {[%clk 0:00:15]}  Qa7 {[%clk 0:00:02]} 28. Kb1 {[%clk 0:00:14]}  Qb6 {[%clk 0:00:01]} 29. Qd4 {[%clk 0:00:13]}  Qa7 {[%clk 0:00:01]} 30. c4 {[%clk 0:00:13]}  Qc7 {[%clk 0:00:00]} 31. Rc1 {[%clk 0:00:12]} 1-0


[Site "https://www.chess.com"]